lending/lending_fUSD_20260124
["ID","MTS","AMOUNT","RATE_DAILY","PERIOD"]
[403242741,1769278242720,-500.0,0.000122,2]
[403242743,1769278242730,-500.0,0.000122,2]
[403242745,1769278242739,-169.48430069,0.000122,2]
[403242747,1769278242749,-500.0,0.000122,2]
[403242749,1769278242759,-500.0,0.000122,2]
[403242751,1769278242768,-489.57842878,0.000122,2]
[403242753,1769278242778,-500.0,0.000122,2]
[403242755,1769278242787,-502.79552946,0.000122,2]
[403242757,1769278242797,-500.0,0.000122,2]
[403242759,1769278242807,-500.0,0.000122,2]
[403242761,1769278242816,-500.75682028,0.000122,2]
[403242763,1769278242825,-217.42155575,0.000122,2]
[403242765,1769278242834,-500.0,0.000122,2]
[403242767,1769278242844,-164.50729817,0.000122,2]
[403242769,1769278242853,-500.0,0.000122,2]
[403242771,1769278242863,-500.0,0.000122,2]
[403242773,1769278242872,-500.0,0.000122,2]
[403242775,1769278242881,-500.0,0.000122,2]
[403242777,1769278242891,-500.0,0.000122,2]
[403242779,1769278242901,-500.0,0.000122,2]
[403242781,1769278242910,-500.0,0.000122,2]
[403242783,1769278242920,-500.0,0.000122,2]
[403242785,1769278242930,-500.0,0.000122,2]
[403242787,1769278242939,-500.0,0.000122,2]
[403242789,1769278242949,-500.0,0.000122,2]
[403242791,1769278242958,-500.0,0.000122,2]
[403242793,1769278242968,-500.0,0.000122,2]
[403242795,1769278242978,-500.0,0.000122,2]
[403242797,1769278242988,-500.0,0.000122,2]
[403242800,1769278242999,-166.22451781,0.000122,2]
[403242802,1769278243013,-500.0,0.000122,2]
[403242804,1769278243022,-500.0,0.000122,2]
[403242806,1769278243032,-163.72504406,0.000122,2]
[403242808,1769278243041,-1852.42,0.0001227,2]
[403242810,1769278243051,-922.36805587,0.0001227,2]
[403242812,1769278243061,-573172.4899638,0.0001228,2]
[403242814,1769278243070,-909.57,0.00012396,2]
[403242816,1769278243084,-391.53698368,0.00012525,2]
[403242818,1769278243094,-166.66,0.00012625,2]
[403242820,1769278243103,-1269.95262616,0.00012652,2]
[403242822,1769278243113,-909.61772844,0.0001267,2]
[403242824,1769278243123,-1000.0,0.00012748,2]
[403242826,1769278243132,-1000.0,0.00012748,2]
[403242828,1769278243142,-1000.0,0.00012748,2]
[403242830,1769278243151,-505.83466941,0.00012748,2]
[403242832,1769278243162,-1000.0,0.00012748,2]
[403242835,1769278243171,-1000.0,0.00012748,2]
[403242837,1769278243181,-1000.0,0.00012748,2]
[403242839,1769278243190,-1000.0,0.00012748,2]
[403242840,1769278243200,-542.33856448,0.00012748,2]
[403242843,1769278243210,-1000.0,0.00012748,2]
[403242845,1769278243219,-1000.0,0.00012748,2]
[403242847,1769278243229,-1000.0,0.00012748,2]
[403242849,1769278243238,-1000.0,0.00012748,2]
[403242850,1769278243247,-239.10627716,0.00012748,2]
[403242853,1769278243257,-1000.0,0.00012748,2]
[403242855,1769278243266,-1045.37690685,0.00012748,2]
[403242857,1769278243275,-1000.0,0.00012748,2]
[403242859,1769278243285,-1000.0,0.00012748,2]
[403242862,1769278243295,-544.47711737,0.00012748,2]
[403242864,1769278243305,-1000.0,0.00012748,2]
[403242866,1769278243314,-1000.0,0.00012748,2]
[403242868,1769278243324,-607.15821099,0.00012748,2]
[403242870,1769278243334,-875.92645048,0.00012748,2]
[403242873,1769278243343,-1000.0,0.00012748,2]
[403242876,1769278243353,-303.1127939,0.00012748,2]
[403242879,1769278243363,-1000.0,0.00012748,2]
[403242882,1769278243372,-1000.0,0.00012748,2]
[403242884,1769278243382,-1000.0,0.00012748,2]
[403242887,1769278243396,-1000.0,0.00012748,2]
[403242890,1769278243406,-1000.0,0.00012748,2]
[403242892,1769278243416,-1000.0,0.00012748,2]
[403242894,1769278243425,-1000.0,0.00012748,2]
[403242898,1769278243434,-1007.32533855,0.00012748,2]
[403242900,1769278243443,-1000.0,0.00012748,2]
[403242903,1769278243453,-1000.0,0.00012748,2]
[403242906,1769278243462,-587.0,0.00012753,2]
[403242909,1769278243471,-2351.0,0.00012767,2]
[403242913,1769278243481,-433.0,0.00012812,2]
[403242915,1769278243490,-174.61919141,0.00012935,2]
[403242917,1769278243500,-500.0,0.00012935,2]
[403242919,1769278243509,-173.60858565,0.00012935,2]
[403242921,1769278243519,-854.2589148,0.00012935,2]
[403242923,1769278243528,-500.0,0.00012935,2]
[403242925,1769278243539,-500.0,0.00012935,2]
[403242927,1769278243548,-500.0,0.00012935,2]
[403242929,1769278243558,-500.0,0.00012935,2]
[403242931,1769278243567,-500.0,0.00012935,2]
[403242933,1769278243575,-500.0,0.00012935,2]
[403242935,1769278243585,-5432.0,0.00012935,2]
[403242937,1769278243594,-500.0,0.00012935,2]
[403242939,1769278243603,-500.0,0.00012935,2]
[403242941,1769278243612,-578.20924308,0.00012935,2]
[403242943,1769278243621,-500.0,0.00012935,2]
[403242945,1769278243631,-500.0,0.00012935,2]
[403242947,1769278243640,-151.0,0.00012935,2]
[403242949,1769278243650,-250.0,0.00012935,2]
[403242951,1769278243659,-855.68236364,0.00012935,2]
[403242953,1769278243668,-250.0,0.00012935,2]
[403242955,1769278243678,-250.0,0.00012935,2]
[403242957,1769278243687,-250.0,0.00012935,2]
[403242959,1769278243696,-250.0,0.00012935,2]
[403242961,1769278243706,-250.0,0.00012935,2]
[403242963,1769278243715,-250.0,0.00012935,2]
[403242965,1769278243725,-250.0,0.00012935,2]
[403242967,1769278243734,-250.0,0.00012935,2]
[403242969,1769278243743,-301.96560903,0.00012935,2]
[403242971,1769278243753,-250.0,0.00012935,2]
[403242973,1769278243762,-250.0,0.00012935,2]
[403242976,1769278243776,-250.0,0.00012935,2]
[403242978,1769278243786,-151.0,0.00012935,2]
[403242980,1769278243796,-250.0,0.00012935,2]
[403242982,1769278243806,-322.6107,0.00012935,2]
[403242984,1769278243816,-250.0,0.00012935,2]
[403242986,1769278243825,-312.60820425,0.00012935,2]
[403242987,1769278243834,-151.0,0.00012935,2]
[403242990,1769278243843,-151.0,0.00012935,2]
[403242992,1769278243853,-500.0,0.00012935,2]
[403242994,1769278243862,-151.0,0.00012935,2]
[403242996,1769278243871,-151.0,0.00012935,2]
[403242998,1769278243881,-500.0,0.00012935,2]
[403243000,1769278243890,-500.0,0.00012935,2]
[403243002,1769278243900,-151.0,0.00012935,2]
[403243003,1769278243909,-500.0,0.00012935,2]
[403243006,1769278243918,-743.50770149,0.00012935,2]
[403243008,1769278243928,-151.0,0.00012935,2]
[403243010,1769278243937,-500.0,0.00012935,2]
[403243012,1769278243947,-151.0,0.00012935,2]
[403243014,1769278243956,-500.0,0.00012935,2]
[403243016,1769278243965,-151.0,0.00012935,2]
[403243018,1769278243974,-500.0,0.00012935,2]
[403243020,1769278243983,-151.0,0.00012935,2]
[403243022,1769278243992,-500.0,0.00012935,2]
[403243024,1769278244001,-151.0,0.00012935,2]
[403243026,1769278244010,-500.0,0.00012935,2]
[403243028,1769278244019,-151.0,0.00012935,2]
[403243030,1769278244028,-500.0,0.00012935,2]
[403243032,1769278244037,-500.0,0.00012935,2]
[403243034,1769278244046,-500.0,0.00012935,2]
[403243036,1769278244055,-500.0,0.00012935,2]
[403243038,1769278244065,-500.0,0.00012935,2]
[403243040,1769278244074,-500.0,0.00012935,2]
[403243042,1769278244085,-500.0,0.00012935,2]
[403243044,1769278244094,-500.0,0.00012935,2]
[403243046,1769278244103,-500.0,0.00012935,2]
[403243048,1769278244113,-500.0,0.00012935,2]
[403243050,1769278244122,-500.0,0.00012935,2]
[403243052,1769278244131,-500.0,0.00012935,2]
[403243054,1769278244140,-500.0,0.00012935,2]
[403243056,1769278244149,-12607.89117579,0.00013002,2]
[403243058,1769278244158,-166.66,0.00013042,2]
[403243060,1769278244168,-185.64315236,0.00013069,2]
[403243062,1769278244177,-1500.0,0.00013296,2]
[403243064,1769278244186,-1497.73333874,0.00013296,2]
[403243066,1769278244196,-1500.0,0.00013296,2]
[403243068,1769278244205,-1500.0,0.00013296,2]
[403243070,1769278244214,-1500.0,0.00013296,2]
[403243072,1769278244224,-1500.0,0.00013296,2]
[403243074,1769278244233,-1500.0,0.00013296,2]
[403243076,1769278244242,-1500.0,0.00013296,2]
[403243078,1769278244251,-1500.0,0.00013296,2]
[403243080,1769278244260,-166.66,0.00013459,2]
[403243082,1769278244270,-181.08010149,0.00013483,2]
[403243084,1769278244279,-885.86649465,0.00013483,2]
[403243086,1769278244289,-230.16041742,0.00013483,2]
[403243088,1769278244298,-262.5256687,0.00013483,2]
[403243090,1769278244307,-370.61215459,0.00013483,2]
[403243092,1769278244317,-1102.0,0.00013563,2]
[403243094,1769278244326,-500.0,0.00013698,2]
[403243096,1769278244338,-197.58025142,0.00013698,2]
[403243099,1769278244348,-500.0,0.00013698,2]
[403243101,1769278244359,-500.0,0.00013698,2]
[403243103,1769278244368,-500.0,0.00013698,2]
[403243105,1769278244378,-500.0,0.00013698,2]
[403243107,1769278244387,-500.0,0.00013698,2]
[403243109,1769278244396,-500.0,0.00013698,2]
[403243111,1769278244405,-512.40415127,0.00013698,2]
[403243113,1769278244414,-500.0,0.00013698,2]
[403243115,1769278244433,-165.97106181,0.00013698,2]
[403243116,1769278244442,-500.0,0.00013698,2]
[403243119,1769278244452,-448.17762938,0.00013698,2]
[403243121,1769278244461,-500.0,0.00013698,2]
[403243123,1769278244471,-500.0,0.00013698,2]
[403243125,1769278244480,-500.0,0.00013698,2]
[403243127,1769278244489,-500.0,0.00013698,2]
[403243129,1769278244498,-500.0,0.00013698,2]
[403243131,1769278244507,-500.0,0.00013698,2]
[403243133,1769278244516,-500.0,0.00013698,2]
[403243135,1769278244527,-500.0,0.00013698,2]
[403243137,1769278244536,-500.0,0.00013698,2]
[403243139,1769278244545,-500.0,0.00013698,2]
[403243141,1769278244555,-500.0,0.00013698,2]
[403243143,1769278244563,-500.0,0.00013698,2]
[403243145,1769278244572,-500.0,0.00013698,2]
[403243147,1769278244582,-250.0,0.00013699,2]
[403243149,1769278244590,-250.0,0.00013699,2]
[403243151,1769278244599,-250.0,0.00013699,2]
[403243153,1769278244609,-250.0,0.00013699,2]
[403243155,1769278244618,-250.0,0.00013699,2]
[403243157,1769278244628,-250.0,0.00013699,2]
[403243159,1769278244638,-250.0,0.00013699,2]
[403243161,1769278244647,-250.0,0.00013699,2]
[403243163,1769278244657,-250.0,0.00013699,2]
[403243165,1769278244666,-250.0,0.00013699,2]
[403243167,1769278244675,-250.0,0.00013699,2]
[403243169,1769278244684,-500.0,0.00013699,2]
[403243171,1769278244694,-500.0,0.00013699,2]
[403243173,1769278244703,-500.0,0.00013699,2]
[403243175,1769278244713,-570.0,0.00013699,2]
[403243177,1769278244723,-1269.95262616,0.00013702,2]
[403243179,1769278244732,-12607.89117579,0.00013818,2]
[403243181,1769278244742,-2000.0,0.00013844,2]
[403243183,1769278244752,-446.80273923,0.00013844,2]
[403243185,1769278244761,-2000.0,0.00013844,2]
[403243188,1769278244771,-2000.0,0.00013844,2]
[403243190,1769278244781,-2000.0,0.00013844,2]
[403243192,1769278244791,-2000.0,0.00013844,2]
[403243194,1769278244800,-2000.0,0.00013844,2]
[403243196,1769278244810,-2000.0,0.00013844,2]
[403243198,1769278244820,-166.66,0.00013876,2]
[403243200,1769278244830,-573172.4899638,0.00013908,2]
[403243202,1769278244840,-158.19,0.00013973,2]
[403243204,1769278244849,-158.19,0.00013973,2]
[403243231,1769278245117,-158.19,0.00013973,2]
[403243233,1769278245127,-158.19,0.00013973,2]
[403243235,1769278245136,-158.2,0.00013973,2]
[403243237,1769278245145,-823.0,0.0001402,2]
[403243240,1769278245157,-187.78006525,0.00014031,2]
[403243242,1769278245166,-918.64355495,0.00014031,2]
[403243244,1769278245176,-3292.0,0.00014043,2]
[403243246,1769278245185,-736.0,0.00014058,2]
[403243248,1769278245194,-4866.83990877,0.00014074,2]
[403243250,1769278245203,-250.0,0.00014105,2]
[403243252,1769278245213,-185.64315236,0.00014277,2]
[403243254,1769278245222,-178.77712539,0.00014277,2]
[403243256,1769278245231,-1102.0,0.00014277,2]
[403243258,1769278245239,-166.66,0.00014292,2]
[403243260,1769278245248,-334.5472959,0.00014304,2]
[403243262,1769278245258,-2500.0,0.00014392,2]
[403243264,1769278245267,-2408.40901104,0.00014392,2]
[403243266,1769278245276,-2500.0,0.00014392,2]
[403243268,1769278245285,-314.99405907,0.00014392,2]
[403243270,1769278245295,-2500.0,0.00014392,2]
[403243272,1769278245304,-2500.0,0.00014392,2]
[403243274,1769278245313,-2500.0,0.00014392,2]
[403243276,1769278245323,-158.19,0.00014521,2]
[403243278,1769278245332,-158.19,0.00014521,2]
[403243280,1769278245341,-158.19,0.00014521,2]
[403243282,1769278245351,-158.19,0.00014521,2]
[403243284,1769278245360,-158.2,0.00014521,2]
[403243286,1769278245369,-194.72792766,0.00014579,2]
[403243288,1769278245378,-952.63336648,0.00014579,2]
[403243290,1769278245388,-180.3543553,0.00014588,2]
[403243292,1769278245397,-500.0,0.00014634,2]
[403243294,1769278245406,-226.94622895,0.00014634,2]
[403243296,1769278245415,-500.0,0.00014634,2]
[403243297,1769278245424,-500.0,0.00014634,2]
[403243300,1769278245433,-12607.89117579,0.00014635,2]
[403243302,1769278245443,-166.66,0.00014709,2]
[403243303,1769278245452,-1269.95262616,0.00014751,2]
[403243305,1769278245462,-3000.0,0.0001494,2]
[403243307,1769278245471,-1422.23642081,0.0001494,2]
[403243309,1769278245481,-3000.0,0.0001494,2]
[403243311,1769278245491,-484.2666436,0.0001494,2]
[403243313,1769278245500,-3000.0,0.0001494,2]
[403243314,1769278245512,-1102.0,0.00014991,2]
[403243315,1769278245522,-158.19,0.00015068,2]
[403243316,1769278245536,-158.19,0.00015068,2]
[403243317,1769278245545,-158.19,0.00015068,2]
[403243318,1769278245554,-158.19,0.00015068,2]
[403243319,1769278245563,-158.2,0.00015068,2]
[403243320,1769278245573,-201.93286099,0.00015127,2]
[403243321,1769278245584,-987.88080104,0.00015127,2]
[403243322,1769278245593,-187.18,0.00015184,2]
[403243323,1769278245602,-150.99,0.0001531,2]
[403243324,1769278245611,-150.99,0.0001531,2]
[403243325,1769278245620,-310.44,0.0001531,2]
[403243326,1769278245628,-299.99,0.0001531,2]
[403243327,1769278245637,-1152.0,0.00015413,2]
[403243328,1769278245646,-253.0,0.00015421,2]
[403243329,1769278245655,-4609.0,0.00015448,2]
[403243330,1769278245665,-12607.89117579,0.00015451,2]
[403243331,1769278245675,-6684.0,0.00015451,2]
[403243333,1769278245684,-7328.43512446,0.00015474,2]
[403243335,1769278245693,-185.64315236,0.00015484,2]
[403243337,1769278245703,-3500.0,0.00015488,2]
[403243339,1769278245712,-3500.0,0.00015488,2]
[403243341,1769278245722,-3500.0,0.00015488,2]
[403243343,1769278245732,-573172.4899638,0.00015536,2]
[403243345,1769278245741,-12843.66752018,0.00015574,2]
[403243347,1769278245751,-346.92554585,0.00015673,2]
[403243349,1769278245760,-5432.0,0.00015674,2]
[403243351,1769278245770,-599.60298507,0.00015674,2]
[403243353,1769278245780,-209.40437684,0.00015675,2]
[403243355,1769278245790,-1024.43239068,0.00015675,2]
[403243357,1769278245799,-1235.01019802,0.0001574,2]
[403243359,1769278245809,-1600.0,0.00015782,2]
[403243361,1769278245818,-1269.95262616,0.00015801,2]
[403243363,1769278245827,-7321.38,0.00015852,2]
[403243365,1769278245836,-1000.0,0.00015918,2]
[403243367,1769278245848,-253.570956,0.00016,2]
[403243369,1769278245857,-150.0,0.00016,2]
[403243371,1769278245866,-4000.0,0.00016036,2]
[403243373,1769278245876,-3416.08246383,0.00016036,2]
[403243375,1769278245885,-867.61787343,0.00016036,2]
[403243377,1769278245894,-500.0,0.00016082,2]
[403243379,1769278245904,-200.0,0.0001619,2]
[403243381,1769278245912,-217.15233878,0.00016223,2]
[403243383,1769278245922,-1103.92763779,0.00016223,2]
[403243385,1769278245932,-159.59843399,0.00016233,2]
[403243387,1769278245941,-7915.45210498,0.00016267,2]
[403243389,1769278245951,-12607.89117579,0.00016267,2]
[403243391,1769278245960,-1000.0,0.00016273,2]
[403243393,1769278245969,-246.76380553,0.00016274,2]
[403243395,1769278245979,-150.0,0.00016274,2]
[403243397,1769278245993,-150.0,0.00016329,2]
[403243399,1769278246002,-500.0,0.00016356,2]
[403243401,1769278246011,-500.0,0.00016356,2]
[403243403,1769278246021,-200.0,0.00016384,2]
[403243405,1769278246030,-836.0,0.000164,2]
[403243408,1769278246039,-938.89045617,0.00016422,2]
[403243409,1769278246050,-222.33,0.00016434,2]
[403243412,1769278246059,-150.0,0.00016434,2]
[403243413,1769278246069,-500.0,0.00016438,2]
[403243415,1769278246080,-542.70615564,0.00016438,2]
[403243418,1769278246090,-500.0,0.00016438,2]
[403243420,1769278246099,-542.70615564,0.00016438,2]
[403243422,1769278246108,-1093.10677365,0.00016438,2]
[403243423,1769278246117,-1093.10677365,0.00016438,2]
[403243426,1769278246127,-1093.10677365,0.00016438,2]
[403243427,1769278246136,-1093.10677365,0.00016438,2]
[403243429,1769278246145,-1093.10677365,0.00016438,2]
[403243431,1769278246154,-1093.10677365,0.00016438,2]
[403243433,1769278246163,-1093.10677365,0.00016438,2]
[403243435,1769278246175,-1093.10677365,0.00016438,2]
[403243438,1769278246188,-1093.10677365,0.00016438,2]
[403243440,1769278246198,-1093.10677365,0.00016438,2]
[403243441,1769278246207,-1093.10677365,0.00016438,2]
[403243443,1769278246216,-1093.10677365,0.00016438,2]
[403243446,1769278246227,-1093.10677365,0.00016438,2]
[403243448,1769278246236,-1093.10677365,0.00016438,2]
[403243449,1769278246245,-1093.10677365,0.00016438,2]
[403243453,1769278246255,-1093.10677365,0.00016438,2]
[403243454,1769278246264,-1093.10677365,0.00016438,2]
[403243456,1769278246274,-1093.10677365,0.00016438,2]
[403243458,1769278246282,-1093.10677365,0.00016438,2]
[403243460,1769278246291,-1093.10677365,0.00016438,2]
[403243462,1769278246301,-1093.10677365,0.00016438,2]
[403243465,1769278246311,-1093.10677365,0.00016438,2]
[403243467,1769278246322,-1093.10677365,0.00016438,2]
[403243469,1769278246331,-1093.10677365,0.00016438,2]
[403243471,1769278246340,-1093.10677365,0.00016438,2]
[403243473,1769278246350,-1093.10677365,0.00016438,2]
[403243475,1769278246359,-1093.10677365,0.00016438,2]
[403243477,1769278246368,-1093.10677365,0.00016438,2]
[403243479,1769278246378,-1093.10677365,0.00016438,2]
[403243481,1769278246387,-1093.10677365,0.00016438,2]
[403243483,1769278246396,-1093.10677365,0.00016438,2]
[403243485,1769278246405,-1093.10677365,0.00016438,2]
[403243487,1769278246415,-1093.10677365,0.00016438,2]
[403243489,1769278246424,-1093.10677365,0.00016438,2]
[403243491,1769278246433,-1093.10677365,0.00016438,2]
[403243493,1769278246443,-1093.10677365,0.00016438,2]
[403243495,1769278246452,-1093.10677365,0.00016438,2]
[403243497,1769278246461,-1093.10677365,0.00016438,2]
[403243499,1769278246471,-1093.10677365,0.00016438,2]
[403243501,1769278246481,-1093.10677365,0.00016438,2]
[403243503,1769278246490,-1093.10677365,0.00016438,2]
[403243505,1769278246500,-1093.10677365,0.00016438,2]
[403243507,1769278246509,-1093.10677365,0.00016438,2]
[403243509,1769278246518,-1093.10677365,0.00016438,2]
[403243511,1769278246527,-1093.10677365,0.00016438,2]
[403243513,1769278246537,-1093.10677365,0.00016438,2]
[403243515,1769278246546,-1093.10677365,0.00016438,2]
[403243517,1769278246554,-1093.10677365,0.00016438,2]
[403243519,1769278246564,-1093.10677365,0.00016438,2]
[403243521,1769278246573,-1093.10677365,0.00016438,2]
[403243523,1769278246582,-1093.10677365,0.00016438,2]
[403243525,1769278246591,-1093.10677365,0.00016438,2]
[403243527,1769278246601,-1093.10677365,0.00016438,2]
[403243529,1769278246610,-1093.10677365,0.00016438,2]
[403243531,1769278246619,-1093.10677365,0.00016438,2]
[403243533,1769278246628,-1053.43159044,0.00016438,2]
[403243535,1769278246637,-1053.43159044,0.00016438,2]
[403243537,1769278246646,-1053.43159044,0.00016438,2]
[403243539,1769278246655,-1053.43159044,0.00016438,2]
[403243541,1769278246665,-1053.43159044,0.00016438,2]
[403243543,1769278246674,-1053.43159044,0.00016438,2]
[403243545,1769278246683,-1053.43159044,0.00016438,2]
[403243547,1769278246692,-1053.43159044,0.00016438,2]
[403243549,1769278246701,-1053.43159044,0.00016438,2]
[403243551,1769278246710,-1053.43159044,0.00016438,2]
[403243553,1769278246719,-1053.43159044,0.00016438,2]
[403243555,1769278246729,-1053.43159044,0.00016438,2]
[403243557,1769278246738,-1053.43159044,0.00016438,2]
[403243559,1769278246747,-1053.43159044,0.00016438,2]
[403243561,1769278246755,-1053.43159044,0.00016438,2]
[403243563,1769278246765,-1053.43159044,0.00016438,2]
[403243565,1769278246775,-1053.43159044,0.00016438,2]
[403243567,1769278246786,-1053.43159044,0.00016438,2]
[403243569,1769278246795,-1053.43159044,0.00016438,2]
[403243571,1769278246805,-1053.43159044,0.00016438,2]
[403243573,1769278246814,-1053.43159044,0.00016438,2]
[403243575,1769278246823,-1053.43159044,0.00016438,2]
[403243577,1769278246832,-1053.43159044,0.00016438,2]
[403243579,1769278246841,-1053.43159044,0.00016438,2]
[403243581,1769278246850,-1053.43159044,0.00016438,2]
[403243583,1769278246859,-1053.43159044,0.00016438,2]
[403243585,1769278246869,-1053.43159044,0.00016438,2]
[403243587,1769278246878,-1053.43159044,0.00016438,2]
[403243590,1769278246886,-1053.43159044,0.00016438,2]
[403243593,1769278246896,-1053.43159044,0.00016438,2]
[403243595,1769278246905,-1053.43159044,0.00016438,2]
[403243597,1769278246914,-500.0,0.00016438,2]
[403243599,1769278246923,-500.0,0.00016438,2]
[403243601,1769278246933,-500.0,0.00016438,2]
[403243603,1769278246942,-500.0,0.00016438,2]
[403243605,1769278246951,-500.0,0.00016438,2]
[403243607,1769278246960,-500.0,0.00016438,2]
[403243609,1769278246970,-500.0,0.00016438,2]
[403243611,1769278246979,-500.0,0.00016438,2]
[403243613,1769278246988,-500.0,0.00016438,2]
[403243615,1769278246997,-500.0,0.00016438,2]
[403243617,1769278247007,-500.0,0.00016438,2]
[403243619,1769278247016,-500.0,0.00016438,2]
[403243621,1769278247025,-500.0,0.00016438,2]
[403243623,1769278247034,-500.0,0.00016438,2]
[403243625,1769278247043,-500.0,0.00016438,2]
[403243627,1769278247052,-500.0,0.00016438,2]
[403243629,1769278247061,-500.0,0.00016438,2]
[403243631,1769278247071,-500.0,0.00016438,2]
[403243633,1769278247083,-500.0,0.00016438,2]
[403243634,1769278247093,-500.0,0.00016438,2]
[403243637,1769278247104,-500.0,0.00016438,2]
[403243638,1769278247115,-500.0,0.00016438,2]
[403243640,1769278247124,-500.0,0.00016438,2]
[403243642,1769278247133,-466.55,0.00016438,2]
[403243644,1769278247142,-316.743665,0.00016438,2]
[403243646,1769278247151,-158.19,0.00016438,2]
[403243648,1769278247162,-158.19,0.00016438,2]
[403243650,1769278247172,-158.19,0.00016438,2]
[403243652,1769278247181,-158.19,0.00016438,2]
[403243654,1769278247190,-800.0,0.00016438,2]
[403243656,1769278247200,-151.0,0.00016438,2]
[403243658,1769278247208,-165.25,0.0001644,2]
[403243660,1769278247217,-1000.0,0.00016495,2]
[403243662,1769278247227,-9577.0107416,0.000165,2]
[403243664,1769278247236,-1000.0,0.00016515,2]
[403243666,1769278247245,-22657.75191414,0.00016574,2]
[403243668,1769278247254,-4500.0,0.00016584,2]
[403243670,1769278247263,-1000.0,0.00016598,2]
[403243673,1769278247273,-1000.0,0.00016636,2]
[403243675,1769278247283,-1000.0,0.00016644,2]
[403243676,1769278247292,-150.0,0.00016654,2]
[403243679,1769278247302,-150.0,0.00016654,2]
[403243681,1769278247311,-1776.4,0.00016657,2]
[403243683,1769278247321,-1000.0,0.00016661,2]
[403243685,1769278247331,-7328.43512446,0.00016687,2]
[403243687,1769278247340,-185.64315236,0.00016692,2]
[403243689,1769278247349,-1000.0,0.00016693,2]
[403243691,1769278247358,-295.86,0.00016713,2]
[403243693,1769278247367,-857.0,0.0001672,2]
[403243695,1769278247376,-1000.0,0.00016762,2]
[403243705,1769278247461,-225.18697532,0.00016771,2]
[403243707,1769278247470,-1776.4,0.00016779,2]
[403243709,1769278247480,-500.0,0.00016789,2]
[403243711,1769278247489,-295.86873386,0.0001681,2]
[403243713,1769278247498,-188.99,0.0001684,2]
[403243715,1769278247507,-1269.95262616,0.0001685,2]
[403243717,1769278247516,-573.18204786,0.0001686,2]
[403243719,1769278247525,-500.0,0.0001686,2]
[403243721,1769278247534,-162.86883444,0.0001686,2]
[403243723,1769278247544,-150.87644931,0.0001686,2]
[403243725,1769278247555,-500.0,0.0001686,2]
[403243727,1769278247564,-300.0,0.0001686,2]
[403243729,1769278247573,-500.0,0.0001686,2]
[403243731,1769278247581,-208.11665623,0.0001686,2]
[403243733,1769278247590,-558.82608128,0.0001686,2]
[403243735,1769278247599,-161.29695591,0.0001686,2]
[403243737,1769278247608,-521.52144255,0.0001686,2]
[403243739,1769278247617,-335.93123339,0.0001686,2]
[403243741,1769278247627,-163.10376799,0.0001686,2]
[403243743,1769278247636,-500.0,0.0001686,2]
[403243745,1769278247645,-500.0,0.0001686,2]
[403243747,1769278247654,-500.0,0.0001686,2]
[403243749,1769278247665,-500.0,0.0001686,2]
[403243751,1769278247674,-500.0,0.0001686,2]
[403243753,1769278247683,-500.0,0.0001686,2]
[403243755,1769278247692,-500.0,0.0001686,2]
[403243757,1769278247701,-500.0,0.0001686,2]
[403243759,1769278247712,-500.0,0.0001686,2]
[403243761,1769278247721,-500.0,0.0001686,2]
[403243763,1769278247730,-500.0,0.0001686,2]
[403243765,1769278247739,-500.0,0.0001686,2]
[403243767,1769278247748,-500.0,0.0001686,2]
[403243769,1769278247758,-500.0,0.0001686,2]
[403243771,1769278247767,-500.0,0.0001686,2]
[403243773,1769278247776,-500.0,0.0001686,2]
[403243775,1769278247786,-500.0,0.0001686,2]
[403243777,1769278247795,-160.30101054,0.0001686,2]